fUSD/lending_fUSD_20250211
["ID","MTS","AMOUNT","RATE_DAILY","PERIOD"]
[352768869,1739299843386,-500.0,0.00017531,2]
[352768870,1739299843396,-500.0,0.00017531,2]
[352768871,1739299843405,-470.728306,0.00017531,2]
[352768872,1739299843416,-500.0,0.00017531,2]
[352768873,1739299843426,-500.0,0.00017531,2]
[352768874,1739299843436,-500.0,0.00017531,2]
[352768875,1739299843445,-500.0,0.00017531,2]
[352768876,1739299843455,-500.0,0.00017531,2]
[352768877,1739299843465,-500.0,0.00017531,2]
[352768878,1739299843474,-500.0,0.00017531,2]
[352768879,1739299843484,-500.0,0.00017531,2]
[352768880,1739299843493,-500.0,0.00017531,2]
[352768881,1739299843502,-500.0,0.00017531,2]
[352768882,1739299843512,-500.0,0.00017531,2]
[352768883,1739299843521,-500.0,0.00017531,2]
[352768885,1739299843531,-500.0,0.00017531,2]
[352768886,1739299843541,-500.0,0.00017531,2]
[352768887,1739299843550,-500.0,0.00017531,2]
[352768888,1739299843560,-500.0,0.00017531,2]
[352768889,1739299843570,-500.0,0.00017531,2]
[352768890,1739299843579,-500.0,0.00017532,2]
[352768891,1739299843589,-574.02,0.00017532,2]
[352768892,1739299843598,-500.0,0.00017532,2]
[352768893,1739299843607,-608.43,0.00017532,2]
[352768894,1739299843778,-500.0,0.00017532,2]
[352768895,1739299843787,-500.0,0.00017532,2]
[352768896,1739299843797,-500.0,0.00017532,2]
[352768897,1739299843806,-225.41264483,0.00017532,2]
[352768899,1739299843815,-500.0,0.00017532,2]
[352768901,1739299843825,-91.27214306,0.00017532,2]
[352768904,1739299843844,-408.72785694,0.00017532,2]
[352768906,1739299843854,-81.15996306,0.00017532,2]
[352768909,1739299843870,-418.84003694,0.00017532,2]
[352768911,1739299843880,-500.0,0.00017532,2]
[352768913,1739299843889,-500.0,0.00017532,2]
[352768915,1739299843898,-500.0,0.00017532,2]
[352768917,1739299843908,-500.0,0.00017532,2]
[352768919,1739299843917,-500.0,0.00017532,2]
[352768920,1739299843926,-500.0,0.00017532,2]
[352768922,1739299843936,-500.0,0.00017532,2]
[352768924,1739299843948,-500.0,0.00017532,2]
[352768926,1739299843958,-500.0,0.00017532,2]
[352768928,1739299843968,-591.3484875,0.00017532,2]
[352768931,1739299843979,-500.0,0.00017532,2]
[352768933,1739299843988,-500.0,0.00017532,2]
[352768936,1739299843997,-500.0,0.00017532,2]
[352768938,1739299844007,-300.54146555,0.00017532,2]
[352768940,1739299844016,-500.0,0.00017532,2]
[352768942,1739299844026,-162.59617886,0.00017568,2]
[352768944,1739299844037,-500.0,0.00017668,2]
[352768946,1739299844047,-500.0,0.00017668,2]
[352768948,1739299844056,-500.0,0.00017668,2]
[352768950,1739299844066,-402.773499,0.00017668,2]
[352768952,1739299844076,-500.0,0.00017668,2]
[352768954,1739299844086,-500.0,0.00017668,2]
[352768956,1739299844096,-500.0,0.00017668,2]
[352768958,1739299844106,-1302.66,0.00017668,2]
[352768960,1739299844116,-500.0,0.00017668,2]
[352768962,1739299844125,-500.0,0.00017668,2]
[352768964,1739299844134,-500.0,0.00017668,2]
[352768966,1739299844144,-500.0,0.00017668,2]
[352768968,1739299844153,-500.0,0.00017668,2]
[352768970,1739299844162,-500.0,0.00017668,2]
[352768972,1739299844171,-500.0,0.00017668,2]
[352768974,1739299844180,-500.0,0.00017668,2]
[352768976,1739299844189,-500.0,0.00017668,2]
[352768977,1739299844199,-500.0,0.00017668,2]
[352768978,1739299844208,-500.0,0.00017668,2]
[352768979,1739299844217,-500.0,0.00017668,2]
[352768980,1739299844226,-500.0,0.00017668,2]
[352768981,1739299844235,-500.0,0.00017668,2]
[352768982,1739299844244,-500.0,0.00017668,2]
[352768983,1739299844254,-500.0,0.00017668,2]
[352768984,1739299844266,-500.0,0.00017668,2]
[352768985,1739299844276,-500.0,0.00017668,2]
[352768986,1739299844286,-500.0,0.00017668,2]
[352768987,1739299844295,-500.0,0.00017668,2]
[352768988,1739299844306,-500.0,0.00017668,2]
[352768989,1739299844315,-613.42471345,0.00017668,2]
[352768990,1739299844325,-176.8156207,0.00017668,2]
[352768991,1739299844339,-323.1843793,0.00017668,2]
[352768992,1739299844350,-500.0,0.00017668,2]
[352768993,1739299844359,-500.0,0.00017668,2]
[352768994,1739299844369,-500.0,0.00017668,2]
[352768995,1739299844378,-500.0,0.00017668,2]
[352768996,1739299844387,-500.0,0.00017668,2]
[352768997,1739299844397,-500.0,0.00017668,2]
[352768998,1739299844407,-500.0,0.00017668,2]
[352768999,1739299844416,-500.0,0.00017668,2]
[352769000,1739299844425,-500.0,0.00017668,2]
[352769001,1739299844435,-500.0,0.00017668,2]
[352769002,1739299844444,-500.0,0.00017668,2]
[352769003,1739299844454,-100.4119323,0.00017668,2]
[352769004,1739299844628,-282.50103199,8.973e-05,2]
[352769017,1739299846343,-2424.34166801,8.973e-05,2]
[352769018,1739299846354,-170.54590982,0.00017258,2]
[352769019,1739299846363,-399.5880677,0.00017668,2]
[352769020,1739299846374,-575.80716243,0.00017668,2]
[352769021,1739299846383,-500.0,0.00017668,2]
[352769022,1739299846393,-500.0,0.00017668,2]
[352769023,1739299846403,-500.0,0.00017668,2]
[352769024,1739299846412,-470.728306,0.00017668,2]
[352769025,1739299846422,-500.0,0.00017668,2]
[352769026,1739299846431,-500.0,0.00017668,2]
[352769027,1739299846441,-500.0,0.00017668,2]
[352769028,1739299846451,-500.0,0.00017668,2]
[352769029,1739299846461,-500.0,0.00017668,2]
[352769030,1739299846471,-500.0,0.00017668,2]
[352769031,1739299846481,-500.0,0.00017668,2]
[352769032,1739299846491,-500.0,0.00017668,2]
[352769033,1739299846501,-500.0,0.00017668,2]
[352769034,1739299846511,-500.0,0.00017668,2]
[352769035,1739299846521,-500.0,0.00017668,2]
[352769036,1739299846531,-500.0,0.00017668,2]
[352769037,1739299846547,-500.0,0.00017668,2]
[352769038,1739299846557,-500.0,0.00017668,2]
[352769039,1739299846568,-500.0,0.00017668,2]
[352769040,1739299846577,-500.0,0.00017668,2]
[352769041,1739299846591,-500.0,0.00017668,2]
[352769042,1739299846601,-500.0,0.00017669,2]
[352769043,1739299846611,-574.02,0.00017669,2]
[352769044,1739299846621,-500.0,0.00017669,2]
[352769045,1739299846630,-86.60643412,0.00017669,2]
[352769046,1739299846649,-500.0,0.00017258,2]
[352769047,1739299846658,-521.82356588,0.00017669,2]
[352769049,1739299846667,-500.0,0.00017669,2]
[352769051,1739299846677,-472.00059441,0.00017669,2]
[352769052,1739299846686,-7.82877623,0.00017669,2]
[352769053,1739299846698,-492.17122377,0.00017669,2]
[352769054,1739299846708,-500.0,0.00017669,2]
[352769055,1739299846718,-305.59268016,0.00017669,2]
[352769057,1739299846727,-500.0,0.00017669,2]
[352769059,1739299846736,-500.0,0.00017669,2]
[352769060,1739299846746,-500.0,0.00017669,2]
[352769061,1739299846756,-500.0,0.00017669,2]
[352769062,1739299846765,-500.0,0.00017669,2]
[352769063,1739299846775,-106.01696059,0.00017669,2]
[352769064,1739299846787,-376.01291854,0.00017669,2]
[352769065,1739299846799,-17.97012087,0.00017669,2]
[352769066,1739299846808,-395.91486945,0.00017669,2]
[352769067,1739299846821,-104.08513055,0.00017669,2]
[352769068,1739299846831,-500.0,0.00017669,2]
[352769069,1739299846843,-500.0,0.00017669,2]
[352769070,1739299846853,-500.0,0.00017669,2]
[352769071,1739299846863,-500.0,0.00017669,2]
[352769072,1739299846873,-500.0,0.00017669,2]
[352769073,1739299846883,-400.55477451,0.00017669,2]
[352769074,1739299846892,-1000.0,0.00017672,2]
[352769075,1739299846901,-500.0,0.00017696,2]
[352769076,1739299846911,-500.0,0.00017696,2]
[352769077,1739299846920,-203.1936883,0.00017706,2]
[352769078,1739299846932,-296.8063117,0.00017706,2]
[352769079,1739299846942,-411.0,0.00017753,2]
[352769080,1739299846951,-500.0,0.00017805,2]
[352769081,1739299846961,-402.773499,0.00017805,2]
[352769082,1739299846971,-500.0,0.00017805,2]
[352769083,1739299846980,-500.0,0.00017805,2]
[352769084,1739299846990,-500.0,0.00017805,2]
[352769085,1739299846999,-746.11642194,0.00017805,2]
[352769086,1739299965925,35.74937692,8.836e-05,2]
[352769087,1739299965948,5159.71862308,8.836e-05,2]
[352769088,1739300020032,516.0825,8.836e-05,2]
[352769089,1739300180169,878.6239,8.836e-05,2]
[352769090,1739300352873,3445.57497692,8.836e-05,2]
[352769091,1739300352894,1181.56692308,8.836e-05,2]
[352769134,1739301031443,-1066.9634,8.973e-05,2]
[352769135,1739301031496,-287.1908,8.973e-05,2]
[352769136,1739301031505,-536.18,0.00010137,2]
[352769137,1739301031515,-899.08083777,0.00011756,2]
[352769138,1739301031525,-899.08083777,0.00011794,2]
[352769139,1739301031534,-250.0,0.00011856,2]
[352769140,1739301031543,-180.45539977,0.00011894,2]
[352769141,1739301031552,-150.0,0.00013,2]
[352769142,1739301031561,-550.0,0.00013,2]
[352769143,1739301031570,-511.19687532,0.00013152,2]
[352769144,1739301031587,-198.63312468,0.00013152,2]
[352769145,1739301031597,-240.10131064,0.00014956,2]
[352769146,1739301031608,-259.89868936,0.00014956,2]
[352769147,1739301031618,-1.61344976,0.00014956,2]
[352769148,1739301031629,-498.38655024,0.00014956,2]
[352769149,1739301031642,-500.0,0.00014956,2]
[352769150,1739301031651,-600.0,0.00015,2]
[352769151,1739301031660,-300.0,0.00015068,2]
[352769152,1739301031669,-739.33,0.00015069,2]
[352769153,1739301031680,-200.0,0.00015069,2]
[352769154,1739301031689,-1000.0,0.00015069,2]
[352769155,1739301031698,-591.55030921,0.00015069,2]
[352769156,1739301031765,-188.65969079,0.00015069,2]
[352769157,1739301031775,-709.83,0.00015415,2]
[352769158,1739301031784,-500.0,0.00016326,2]
[352769159,1739301031793,-5256.0,0.000164,3]
[352769160,1739301031802,-300.0,0.0001649,2]
[352769161,1739301031811,-628.86,0.00016658,30]
[352769162,1739301031820,-3044.05570822,0.0001669,2]
[352769191,1739301037344,-1063.00136618,0.0001669,2]
[352769194,1739301037355,-604.03492847,0.0001669,2]
[352769196,1739301037366,-277.40067284,0.0001669,2]
[352769202,1739301037392,-8161.86057395,0.0001669,2]
[352769204,1739301037403,-1438.54061176,0.0001669,2]
[352769206,1739301037414,-9311.10613858,0.0001669,2]
[352769208,1739301037423,-250.0,0.000168,2]
[352769210,1739301037432,-536.18,0.00016813,2]
[352769212,1739301037442,-1000.0,0.00016822,2]
[352769213,1739301037451,-1000.0,0.00016953,2]
[352769215,1739301037460,-650.0,0.00017,2]
[352769217,1739301037469,-171.7,0.00017042,2]
[352769219,1739301037478,-1080.12168347,0.00017046,2]
[352769221,1739301037488,-288.89,0.00017127,2]
[352769222,1739301037498,-461.47536077,0.00017258,2]
[352769223,1739301037507,-461.7850911,0.00017258,2]
[352769224,1739301037516,-502.31308448,0.00017258,2]
[352769225,1739301037525,-424.96083067,0.00017258,2]
[352769226,1739301037534,-196.18,0.000173,7]
[352769227,1739301037543,-2402.75672163,0.000173,2]
[352769228,1739301037555,-677.51127837,0.000173,2]
[352769229,1739301037564,-183.107,0.000173,2]
[352769230,1739301037573,-104.0138985,0.00017394,2]
[352769231,1739301037588,-72.83095325,0.00017394,2]
[352769232,1739301037598,-500.0,0.00017394,2]
[352769233,1739301037609,-500.0,0.00017394,2]
[352769234,1739301037618,-504.05176596,0.00017394,2]
[352769235,1739301037629,-500.0,0.00017394,2]
[352769236,1739301037642,-500.0,0.00017394,2]
[352769237,1739301037652,-500.0,0.00017394,2]
[352769238,1739301037662,-502.9,0.00017394,2]
[352769239,1739301037672,-500.0,0.00017394,2]
[352769240,1739301037682,-500.0,0.00017394,2]
[352769241,1739301037691,-500.0,0.00017394,2]
[352769242,1739301037700,-500.0,0.00017394,2]
[352769243,1739301037710,-500.0,0.00017394,2]
[352769244,1739301037719,-500.0,0.00017394,2]
[352769245,1739301037728,-500.0,0.00017394,2]
[352769246,1739301037737,-500.0,0.00017394,2]
[352769247,1739301037746,-500.0,0.00017394,2]
[352769248,1739301037755,-501.60888486,0.00017394,2]
[352769249,1739301037765,-525.37337273,0.00017394,2]
[352769251,1739301037774,-500.0,0.00017394,2]
[352769253,1739301037783,-500.0,0.00017394,2]
[352769255,1739301037793,-500.0,0.00017394,2]
[352769256,1739301037802,-500.0,0.00017394,2]
[352769258,1739301037811,-500.0,0.00017394,2]
[352769260,1739301037820,-500.0,0.00017394,2]
[352769262,1739301037829,-500.0,0.00017394,2]
[352769264,1739301037841,-500.0,0.00017394,2]
[352769266,1739301037851,-500.0,0.00017394,2]
[352769269,1739301037861,-500.82356971,0.00017394,2]
[352769271,1739301037870,-500.0,0.00017394,2]
[352769273,1739301037879,-500.78219175,0.00017394,2]
[352769276,1739301037888,-500.0,0.00017394,2]
[352769278,1739301037897,-500.0,0.00017394,2]
[352769280,1739301037906,-500.0,0.00017394,2]
[352769282,1739301037915,-500.0,0.00017394,2]
[352769285,1739301037924,-500.0,0.00017394,2]
[352769287,1739301037934,-532.66350161,0.00017394,2]
[352769289,1739301037943,-500.0,0.00017394,2]
[352769291,1739301037952,-500.0,0.00017394,2]
[352769293,1739301037962,-500.60435142,0.00017394,2]
[352769296,1739301037972,-500.0,0.00017394,2]
[352769298,1739301037981,-500.0,0.00017394,2]
[352769300,1739301037991,-500.0,0.00017394,2]
[352769301,1739301038000,-500.0,0.00017394,2]
[352769303,1739301038010,-500.0,0.00017394,2]
[352769305,1739301038019,-500.0,0.00017394,2]
[352769307,1739301038029,-500.0,0.00017394,2]
[352769309,1739301038038,-500.0,0.00017394,2]
[352769311,1739301038047,-500.0,0.00017394,2]
[352769313,1739301038056,-500.0,0.00017394,2]
[352769315,1739301038066,-353.7095449,0.00017394,2]
[352769318,1739301038078,-146.2904551,0.00017394,2]
[352769320,1739301038089,-500.0,0.00017394,2]
[352769322,1739301038099,-500.0,0.00017394,2]
[352769324,1739301038108,-500.0,0.00017394,2]
[352769326,1739301038118,-500.0,0.00017394,2]
[352769328,1739301038127,-500.0,0.00017394,2]
[352769330,1739301038136,-500.0,0.00017394,2]
[352769332,1739301038145,-500.0,0.00017394,2]
[352769334,1739301038155,-500.0,0.00017394,2]
[352769336,1739301038163,-53.7095449,0.00017394,2]
[352769338,1739301038175,-446.2904551,0.00017394,2]
[352769340,1739301038185,-500.0,0.00017394,2]
[352769342,1739301038194,-500.0,0.00017394,2]
[352769344,1739301038203,-500.0,0.00017394,2]
[352769346,1739301038212,-500.0,0.00017394,2]
[352769348,1739301038221,-500.0,0.00017394,2]
[352769350,1739301038230,-157.28054724,0.00017394,2]
[352769364,1739301038242,-69.65771458,0.00017394,2]
[352769365,1739301038420,-500.0,0.00017394,2]
[352769366,1739301038430,-500.0,0.00017394,2]
[352769367,1739301038441,-500.0,0.00017394,2]
[352769368,1739301038451,-500.0,0.00017394,2]
[352769369,1739301038463,-500.0,0.00017394,2]
[352769370,1739301038473,-500.0,0.00017394,2]
[352769371,1739301038483,-500.0,0.00017394,2]
[352769372,1739301038492,-500.0,0.00017394,2]
[352769373,1739301038502,-524.09,0.00017394,2]
[352769374,1739301038515,-500.0,0.00017394,2]
[352769375,1739301038524,-500.0,0.00017394,2]
[352769376,1739301038533,-502.166373,0.00017394,2]
[352769377,1739301038542,-500.0,0.00017394,2]
[352769378,1739301038551,-500.0,0.00017394,2]
[352769379,1739301038560,-500.0,0.00017394,2]
[352769380,1739301038569,-500.0,0.00017394,2]
[352769381,1739301038578,-500.0,0.00017394,2]
[352769382,1739301038590,-500.0,0.00017394,2]
[352769383,1739301038599,-500.0,0.00017394,2]
[352769384,1739301038608,-500.0,0.00017394,2]
[352769385,1739301038617,-500.0,0.00017394,2]
[352769386,1739301038631,-500.0,0.00017394,2]
[352769387,1739301038641,-283.07118993,0.00017394,2]
[352769388,1739301038650,-500.0,0.00017394,2]
[352769389,1739301038659,-500.0,0.00017394,2]
[352769390,1739301038670,-500.0,0.00017394,2]
[352769391,1739301038679,-500.0,0.000174,2]
[352769392,1739301038689,-173.68,0.00017403,2]
[352769393,1739301038699,-1023.96992476,0.00017449,2]
[352769394,1739301038708,-411.70196193,0.00017509,2]
[352769395,1739301038719,-253.2,0.00017531,2]
[352769396,1739301038728,-500.0,0.00017564,2]
[352769397,1739301038737,-709.83,0.00017679,2]
[352769398,1739301038747,-500.0,0.00017696,2]
[352769399,1739301038756,-500.0,0.00017696,2]
[352769400,1739301038766,-500.0,0.00017696,2]
[352769401,1739301038775,-1455.70893,0.00017805,2]
[352769402,1739301038784,-223.82,0.00018082,2]
[352769403,1739301038793,-1469.1039058,0.00018082,2]
[352769404,1739301038806,-530.8960942,0.00018082,2]
[352769405,1739301038816,-300.0,0.000181,6]
[352769406,1739301038826,-2000.0,0.0001815,2]
[352769407,1739301038836,-500.0,0.0001815,2]
[352769408,1739301038845,-600.0,0.000182,6]
[352769409,1739301038854,-900.0,0.000183,6]
[352769410,1739301038863,-169.1996072,0.00018327,2]
[352769411,1739301038876,-10.2303928,0.00018327,2]
[352769412,1739301038885,-200.0,0.00018384,2]
[352769413,1739301038894,-1200.0,0.000184,6]
[352769414,1739301038903,-164.408393,0.00018411,2]
[352769415,1739301038913,-1122.87116206,0.00018416,2]
[352769416,1739301038923,-1500.0,0.000185,6]
[352769417,1739301038933,-1550.16,0.00018521,2]
[352769418,1739301038943,-876.28,0.00018521,2]
[352769419,1739301038952,-2167.48548463,0.00018598,12]
[352769420,1739301038962,-370.8453297,0.00018599,2]
[352769421,1739301038972,-154.55,0.000186,2]
[352769422,1739301038981,-154.55,0.000186,2]
[352769423,1739301038991,-183.11202733,0.000186,2]
[352769424,1739301039000,-213.21106154,0.000186,2]
[352769425,1739301039010,-207.91101158,0.000186,6]
[352769426,1739301039020,-160.29954191,0.000186,3]
[352769427,1739301039030,-651.54117817,0.000186,2]
[352769428,1739301039039,-447.06132328,0.000186,2]
[352769429,1739301039049,-805.3908114,0.000186,2]
[352769430,1739301039059,-300.0,0.000186,6]
[352769431,1739301039069,-207.91101158,0.00018633,6]
[352769432,1739301039079,-207.91101158,0.00018666,6]
[352769433,1739301039092,-479.290018,0.00018698,2]
[352769434,1739301039102,-160.99916,0.00018698,2]
[352769435,1739301039112,-500.0,0.00018698,2]
[352769436,1739301039122,-500.0,0.00018698,2]
[352769437,1739301039132,-243.069388,0.00018698,2]
[352769438,1739301039141,-1129.58,0.00018698,2]
[352769439,1739301039151,-500.0,0.00018698,2]
[352769440,1739301039161,-500.0,0.00018698,2]
[352769441,1739301039171,-500.0,0.00018698,2]
[352769442,1739301039180,-500.0,0.00018698,2]
[352769443,1739301039190,-500.0,0.00018698,2]
[352769444,1739301039199,-500.0,0.00018698,2]
[352769445,1739301039208,-500.0,0.00018698,2]
[352769446,1739301039218,-500.0,0.00018698,2]
[352769447,1739301039227,-500.0,0.00018698,2]
[352769448,1739301039237,-500.0,0.00018698,2]
[352769449,1739301039246,-500.0,0.00018698,2]
[352769450,1739301039255,-500.0,0.00018698,2]
[352769451,1739301039264,-500.0,0.00018698,2]
[352769452,1739301039274,-500.0,0.00018698,2]
[352769453,1739301039283,-500.0,0.00018698,2]
[352769454,1739301039295,-789.15,0.00018698,2]
[352769455,1739301039304,-500.0,0.00018698,2]
[352769456,1739301039313,-500.0,0.00018698,2]
[352769457,1739301039323,-500.0,0.00018698,2]
[352769458,1739301039332,-500.0,0.00018698,2]
[352769459,1739301039342,-500.0,0.00018698,2]
[352769460,1739301039351,-500.0,0.00018698,2]
[352769461,1739301039360,-500.0,0.00018698,2]
[352769462,1739301039370,-500.0,0.00018698,2]
[352769463,1739301039379,-500.0,0.00018698,2]
[352769464,1739301039388,-500.0,0.00018698,2]
[352769465,1739301039397,-500.0,0.00018698,2]
[352769466,1739301039407,-500.0,0.00018698,2]
[352769467,1739301039416,-500.0,0.00018698,2]
[352769468,1739301039425,-500.0,0.00018698,2]
[352769469,1739301039435,-500.0,0.00018698,2]
[352769470,1739301039444,-500.0,0.00018698,2]
[352769471,1739301039453,-500.0,0.00018698,2]
[352769472,1739301039462,-500.0,0.00018698,2]
[352769473,1739301039471,-500.0,0.00018698,2]
[352769474,1739301039481,-500.0,0.00018698,2]
[352769475,1739301039490,-500.0,0.00018698,2]
[352769476,1739301039499,-500.0,0.00018698,2]
[352769477,1739301039509,-500.0,0.00018698,2]
[352769478,1739301039518,-500.0,0.00018698,2]
[352769479,1739301039527,-500.0,0.00018698,2]
[352769480,1739301039536,-521.92,0.00018698,2]
[352769481,1739301039546,-500.0,0.00018698,2]
[352769482,1739301039556,-500.0,0.00018698,2]
[352769483,1739301039566,-500.0,0.00018698,2]
[352769484,1739301039575,-400.24,0.00018698,2]
[352769485,1739301039587,-500.0,0.00018698,2]
[352769486,1739301039596,-500.0,0.00018698,2]
[352769487,1739301039605,-500.0,0.00018698,2]
[352769488,1739301039614,-500.0,0.00018698,2]
[352769489,1739301039624,-538.47,0.00018698,2]
[352769490,1739301039635,-500.0,0.00018698,2]
[352769491,1739301039645,-500.0,0.00018698,2]
[352769492,1739301039655,-500.0,0.00018698,2]
[352769493,1739301039664,-500.0,0.00018698,2]
[352769494,1739301039675,-500.0,0.00018698,2]
[352769495,1739301039686,-500.0,0.00018698,2]
[352769496,1739301039695,-500.0,0.00018698,2]
[352769497,1739301039705,-500.0,0.00018698,2]
[352769498,1739301039716,-514.52,0.00018698,2]
[352769499,1739301039726,-500.0,0.00018698,2]
[352769500,1739301039735,-500.0,0.00018698,2]
[352769501,1739301039744,-500.0,0.00018698,2]
[352769502,1739301039754,-500.0,0.00018698,2]
[352769503,1739301039763,-500.79,0.00018698,2]
[352769504,1739301039772,-404.18,0.00018698,2]
[352769505,1739301039782,-500.0,0.00018698,2]
[352769506,1739301039791,-500.0,0.00018698,2]
[352769507,1739301039800,-500.0,0.00018698,2]
[352769508,1739301039809,-500.0,0.00018698,2]
[352769509,1739301039818,-500.0,0.00018698,2]
[352769510,1739301039827,-500.0,0.00018698,2]
[352769511,1739301039838,-500.0,0.00018698,2]
[352769512,1739301039847,-500.0,0.00018698,2]
[352769513,1739301039856,-500.0,0.00018698,2]
[352769514,1739301039865,-500.0,0.00018698,2]
[352769515,1739301039875,-500.0,0.00018698,2]
[352769516,1739301039884,-500.0,0.00018698,2]
[352769517,1739301039893,-500.0,0.00018698,2]
[352769518,1739301039902,-500.0,0.00018698,2]
[352769519,1739301039911,-500.0,0.00018698,2]
[352769520,1739301039921,-500.0,0.00018698,2]
[352769521,1739301039930,-500.0,0.00018698,2]
[352769523,1739301039939,-500.0,0.00018698,2]
[352769525,1739301039948,-500.0,0.00018698,2]
[352769527,1739301039957,-500.0,0.00018698,2]
[352769529,1739301039966,-406.78502824,0.00018698,3]
[352769531,1739301039975,-219830.17542165,0.00018698,3]
[352769533,1739301039986,-500.0,0.00018699,2]
[352769535,1739301039995,-500.0,0.00018699,2]
[352769537,1739301040004,-500.0,0.00018699,2]
[352769539,1739301040014,-503.15,0.00018699,2]
[352769541,1739301040023,-500.0,0.00018699,2]
[352769543,1739301040032,-500.0,0.00018699,2]
[352769545,1739301040041,-500.0,0.00018699,2]
[352769546,1739301040050,-458.0984364,0.00018699,2]
[352769548,1739301040059,-500.0,0.00018699,2]
[352769551,1739301040070,-500.0,0.00018699,2]
[352769553,1739301040080,-500.0,0.00018699,2]
[352769555,1739301040091,-500.0,0.00018699,2]
[352769556,1739301040101,-500.0,0.00018699,2]
[352769558,1739301040111,-500.0,0.00018699,2]
[352769560,1739301040120,-582.83430171,0.00018699,2]
[352769562,1739301040129,-500.0,0.00018699,2]
[352769564,1739301040138,-500.0,0.00018699,2]
[352769566,1739301040147,-500.0,0.00018699,2]
[352769568,1739301040156,-500.0,0.00018699,2]
[352769570,1739301040165,-500.0,0.00018699,2]
[352769572,1739301040175,-500.0,0.00018699,2]
[352769574,1739301040184,-500.0,0.00018699,2]
[352769576,1739301040193,-500.0,0.00018699,2]
[352769578,1739301040203,-500.0,0.00018699,2]
[352769580,1739301040212,-500.0,0.00018699,2]
[352769582,1739301040221,-523.78,0.00018699,2]
[352769584,1739301040231,-500.0,0.00018699,2]
[352769586,1739301040241,-500.0,0.00018699,2]
[352769588,1739301040251,-500.0,0.00018699,2]
[352769590,1739301040261,-545.44135117,0.00018699,2]
[352769592,1739301040271,-556.76,0.00018699,2]
[352769594,1739301040281,-500.0,0.00018699,2]
[352769597,1739301040292,-502.53,0.00018699,2]
[352769598,1739301040302,-500.0,0.00018699,2]
[352769601,1739301040312,-500.0,0.00018699,2]
[352769603,1739301040322,-500.0,0.00018699,2]
[352769605,1739301040331,-466.31521099,0.00018699,2]
[352769607,1739301040343,-500.0,0.00018699,2]
[352769609,1739301040353,-506.69166859,0.00018699,2]
[352769610,1739301040363,-500.3,0.00018699,2]
[352769613,1739301040373,-500.0,0.00018699,2]
[352769615,1739301040382,-512.08,0.00018699,2]
[352769616,1739301040391,-500.0,0.00018699,2]
[352769618,1739301040400,-541.44,0.00018699,2]
[352769620,1739301040410,-500.0,0.00018699,2]
[352769622,1739301040419,-500.0,0.00018699,2]
[352769623,1739301040428,-500.0,0.00018699,2]
[352769625,1739301040438,-522.58,0.00018699,2]
[352769627,1739301040448,-500.0,0.00018699,2]
[352769629,1739301040457,-500.0,0.00018699,2]
[352769630,1739301040467,-500.0,0.00018699,2]
[352769631,1739301040477,-503.60468531,0.00018699,2]